[Event "Early Titled Tuesday Blitz | February 8 2022"]
[White "Lopez Mulet, Inigo"]
[Black "Popadic, Dragan"]
[WhiteFideId "22235620"]
[BlackFideId "913650"]
[WhiteElo "2315"]
[BlackElo "2199"]
[Result "0-1"]
[Round "05"]
[TimeControl "180+1"]
[Date "2022.02.08"]
[WhiteClock "0:00:31"]
[BlackClock "0:00:06"]

1. d4 {[%clk 0:02:56]}  Nf6 {[%clk 0:02:59]} 2. Nc3 {[%clk 0:02:54]}  d5 {[%clk 0:02:58]} 3. Bg5 {[%clk 0:02:53]}  c5 {[%clk 0:02:50]} 4. e3 {[%clk 0:02:50]}  cxd4 {[%clk 0:02:48]} 5. exd4 {[%clk 0:02:51]}  Nc6 {[%clk 0:02:47]} 6. Nf3 {[%clk 0:02:46]}  Bg4 {[%clk 0:02:46]} 7. Bxf6 {[%clk 0:02:39]}  gxf6 {[%clk 0:02:45]} 8. Be2 {[%clk 0:02:37]}  e6 {[%clk 0:02:45]} 9. h3 {[%clk 0:02:38]}  Bh5 {[%clk 0:02:45]} 10. a3 {[%clk 0:02:35]}  Rc8 {[%clk 0:02:40]} 11. Qd2 {[%clk 0:02:34]}  Qb6 {[%clk 0:02:39]} 12. Na4 {[%clk 0:02:27]}  Qc7 {[%clk 0:02:26]} 13. O-O {[%clk 0:02:20]}  Rg8 {[%clk 0:02:19]} 14. Kh1 {[%clk 0:02:20]}  Bd6 {[%clk 0:02:16]} 15. Rae1 {[%clk 0:02:09]}  Ne7 {[%clk 0:02:14]} 16. Nc3 {[%clk 0:02:05]}  a6 {[%clk 0:02:10]} 17. Nh4 {[%clk 0:01:58]}  Bf4 {[%clk 0:02:03]} 18. Qd3 {[%clk 0:01:56]}  Bg6 {[%clk 0:02:00]} 19. Nxg6 {[%clk 0:01:55]}  hxg6 {[%clk 0:01:58]} 20. Bf3 {[%clk 0:01:50]}  Kf8 {[%clk 0:01:40]} 21. Ne2 {[%clk 0:01:46]}  Bd6 {[%clk 0:01:33]} 22. Rc1 {[%clk 0:01:44]}  Bf4 {[%clk 0:01:28]} 23. Nxf4 {[%clk 0:01:44]}  Qxf4 {[%clk 0:01:27]} 24. c4 {[%clk 0:01:38]}  Kg7 {[%clk 0:01:13]} 25. Rc3 {[%clk 0:01:16]}  dxc4 {[%clk 0:01:05]} 26. Rxc4 {[%clk 0:01:16]}  Rxc4 {[%clk 0:01:05]} 27. Qxc4 {[%clk 0:01:16]}  b5 {[%clk 0:00:55]} 28. Qc5 {[%clk 0:01:16]}  Nf5 {[%clk 0:00:54]} 29. Rd1 {[%clk 0:01:08]}  Rd8 {[%clk 0:00:45]} 30. d5 {[%clk 0:01:00]}  exd5 {[%clk 0:00:38]} 31. Rxd5 {[%clk 0:00:58]}  Rxd5 {[%clk 0:00:36]} 32. Bxd5 {[%clk 0:00:57]}  Qe5 {[%clk 0:00:33]} 33. b4 {[%clk 0:00:46]}  Qa1+ {[%clk 0:00:19]} 34. Kh2 {[%clk 0:00:45]}  Qxa3 {[%clk 0:00:19]} 35. g4 {[%clk 0:00:39]}  Nh6 {[%clk 0:00:18]} 36. Qd4 {[%clk 0:00:38]}  Qc1 {[%clk 0:00:16]} 37. h4 {[%clk 0:00:36]}  Qc7+ {[%clk 0:00:13]} 38. Kg2 {[%clk 0:00:34]}  Qd6 {[%clk 0:00:13]} 39. g5 {[%clk 0:00:24]}  Nf5 {[%clk 0:00:12]} 40. Qxf6+ {[%clk 0:00:20]}  Qxf6 {[%clk 0:00:12]} 41. gxf6+ {[%clk 0:00:20]}  Kxf6 {[%clk 0:00:12]} 42. Bb7 {[%clk 0:00:21]}  Nxh4+ {[%clk 0:00:11]} 43. Kf1 {[%clk 0:00:21]}  Nf5 {[%clk 0:00:11]} 44. Bxa6 {[%clk 0:00:22]}  Nd6 {[%clk 0:00:11]} 45. Ke2 {[%clk 0:00:22]}  Ke5 {[%clk 0:00:10]} 46. Kd3 {[%clk 0:00:23]}  g5 {[%clk 0:00:10]} 47. Ke3 {[%clk 0:00:22]}  f5 {[%clk 0:00:09]} 48. Kd3 {[%clk 0:00:22]}  f4 {[%clk 0:00:07]} 49. f3 {[%clk 0:00:22]}  Kd5 {[%clk 0:00:07]} 50. Kc3 {[%clk 0:00:21]}  Ke5 {[%clk 0:00:06]} 51. Kd3 {[%clk 0:00:22]}  Kf5 {[%clk 0:00:05]} 52. Kd4 {[%clk 0:00:21]}  g4 {[%clk 0:00:05]} 53. fxg4+ {[%clk 0:00:21]}  Kxg4 {[%clk 0:00:04]} 54. Kd5 {[%clk 0:00:21]}  Nf5 {[%clk 0:00:02]} 55. Bxb5 {[%clk 0:00:21]}  f3 {[%clk 0:00:02]} 56. Ke4 {[%clk 0:00:19]}  Nd6+ {[%clk 0:00:02]} 57. Ke3 {[%clk 0:00:19]}  Nxb5 {[%clk 0:00:03]} 58. Kf2 {[%clk 0:00:20]}  Kf4 {[%clk 0:00:02]} 59. Ke1 {[%clk 0:00:21]}  Ke3 {[%clk 0:00:02]} 60. Kf1 {[%clk 0:00:21]}  Nc3 {[%clk 0:00:02]} 61. Ke1 {[%clk 0:00:21]}  Nb5 {[%clk 0:00:02]} 62. Kf1 {[%clk 0:00:22]}  f2 {[%clk 0:00:03]} 63. Kg2 {[%clk 0:00:22]}  Ke2 {[%clk 0:00:03]} 64. Kg3 {[%clk 0:00:23]}  f1=Q {[%clk 0:00:04]} 65. Kg4 {[%clk 0:00:24]}  Qb1 {[%clk 0:00:04]} 66. Kg5 {[%clk 0:00:24]}  Qxb4 {[%clk 0:00:05]} 67. Kf6 {[%clk 0:00:25]}  Qd2 {[%clk 0:00:06]} 68. Ke7 {[%clk 0:00:26]}  Ke3 {[%clk 0:00:06]} 69. Ke6 {[%clk 0:00:26]}  Qd3 {[%clk 0:00:07]} 70. Ke5 {[%clk 0:00:27]}  Qd2 {[%clk 0:00:08]} 71. Kf5 {[%clk 0:00:27]}  Qb4 {[%clk 0:00:08]} 72. Ke5 {[%clk 0:00:27]}  Qc5+ {[%clk 0:00:08]} 73. Ke6 {[%clk 0:00:28]}  Ke4 {[%clk 0:00:08]} 74. Kf6 {[%clk 0:00:29]}  Qc6+ {[%clk 0:00:08]} 75. Ke7 {[%clk 0:00:29]}  Ke5 {[%clk 0:00:08]} 76. Kf7 {[%clk 0:00:30]}  Qb7+ {[%clk 0:00:08]} 77. Kg8 {[%clk 0:00:30]}  Kf6 {[%clk 0:00:07]} 78. Kh8 {[%clk 0:00:31]}  Qg7# {[%clk 0:00:06]} 0-1


[Site "https://www.chess.com"]

[Event "Early Titled Tuesday Blitz | February 8 2022"]
[White "Loy, Konstantin"]
[Black "Thomas, Anysia"]
[WhiteFideId "14122499"]
[BlackFideId "670472"]
[WhiteElo "2084"]
[BlackElo "2002"]
[Result "1/2-1/2"]
[Round "05"]
[TimeControl "180+1"]
[Date "2022.02.08"]
[WhiteClock "0:00:04"]
[BlackClock "0:00:10"]

1. e4 {[%clk 0:02:58]}  c5 {[%clk 0:02:46]} 2. Nf3 {[%clk 0:02:57]}  g6 {[%clk 0:02:44]} 3. d4 {[%clk 0:02:57]}  cxd4 {[%clk 0:02:44]} 4. Nxd4 {[%clk 0:02:58]}  Nc6 {[%clk 0:02:44]} 5. Nc3 {[%clk 0:02:57]}  Bg7 {[%clk 0:02:39]} 6. Be3 {[%clk 0:02:57]}  Nf6 {[%clk 0:02:39]} 7. Bc4 {[%clk 0:02:55]}  O-O {[%clk 0:02:38]} 8. Bb3 {[%clk 0:02:53]}  d6 {[%clk 0:02:33]} 9. f3 {[%clk 0:02:50]}  Qa5 {[%clk 0:02:31]} 10. h4 {[%clk 0:02:49]}  h5 {[%clk 0:02:27]} 11. Qd2 {[%clk 0:02:48]}  a6 {[%clk 0:02:24]} 12. O-O-O {[%clk 0:02:45]}  Bd7 {[%clk 0:02:19]} 13. Kb1 {[%clk 0:02:40]}  Rfe8 {[%clk 0:02:12]} 14. Nde2 {[%clk 0:01:59]}  b5 {[%clk 0:02:10]} 15. Nf4 {[%clk 0:01:42]}  Ne5 {[%clk 0:02:07]} 16. Nfd5 {[%clk 0:01:34]}  Nxd5 {[%clk 0:02:01]} 17. Nxd5 {[%clk 0:01:23]}  Qxd2 {[%clk 0:01:59]} 18. Rxd2 {[%clk 0:01:24]}  Rac8 {[%clk 0:01:57]} 19. Nb6 {[%clk 0:01:20]}  Rc7 {[%clk 0:01:53]} 20. Nxd7 {[%clk 0:01:20]}  Rxd7 {[%clk 0:01:51]} 21. Rhd1 {[%clk 0:01:12]}  Nc4 {[%clk 0:01:50]} 22. Bxc4 {[%clk 0:01:11]}  bxc4 {[%clk 0:01:51]} 23. Bd4 {[%clk 0:01:11]}  Bh6 {[%clk 0:01:47]} 24. Re2 {[%clk 0:01:09]}  Rb7 {[%clk 0:01:46]} 25. Bc3 {[%clk 0:01:09]}  Reb8 {[%clk 0:01:44]} 26. Rd5 {[%clk 0:00:51]}  Rb5 {[%clk 0:01:33]} 27. Rxb5 {[%clk 0:00:41]}  axb5 {[%clk 0:01:30]} 28. a3 {[%clk 0:00:41]}  Bf4 {[%clk 0:01:21]} 29. e5 {[%clk 0:00:39]}  Rb7 {[%clk 0:01:01]} 30. exd6 {[%clk 0:00:37]}  Bxd6 {[%clk 0:01:01]} 31. Be5 {[%clk 0:00:35]}  Bc5 {[%clk 0:00:59]} 32. Rd2 {[%clk 0:00:31]}  f6 {[%clk 0:00:53]} 33. Bg3 {[%clk 0:00:28]}  Kf7 {[%clk 0:00:52]} 34. c3 {[%clk 0:00:24]}  Be3 {[%clk 0:00:34]} 35. Rd5 {[%clk 0:00:18]}  Ke6 {[%clk 0:00:34]} 36. Rd1 {[%clk 0:00:18]}  Kf7 {[%clk 0:00:29]} 37. Kc2 {[%clk 0:00:17]}  Bc5 {[%clk 0:00:28]} 38. Rd5 {[%clk 0:00:16]}  Ke6 {[%clk 0:00:27]} 39. Rxc5 {[%clk 0:00:15]}  Kf7 {[%clk 0:00:25]} 40. Rc7 {[%clk 0:00:14]}  Rb6 {[%clk 0:00:25]} 41. Rd7 {[%clk 0:00:09]}  Re6 {[%clk 0:00:24]} 42. Rd2 {[%clk 0:00:09]}  g5 {[%clk 0:00:23]} 43. hxg5 {[%clk 0:00:08]}  fxg5 {[%clk 0:00:24]} 44. b3 {[%clk 0:00:08]}  Kg6 {[%clk 0:00:23]} 45. bxc4 {[%clk 0:00:08]}  bxc4 {[%clk 0:00:24]} 46. Bf2 {[%clk 0:00:07]}  Kf5 {[%clk 0:00:20]} 47. Bc5 {[%clk 0:00:07]}  g4 {[%clk 0:00:17]} 48. fxg4+ {[%clk 0:00:07]}  Kxg4 {[%clk 0:00:18]} 49. Rd4+ {[%clk 0:00:06]}  Kg3 {[%clk 0:00:18]} 50. Rxc4 {[%clk 0:00:06]}  h4 {[%clk 0:00:16]} 51. Bf2+ {[%clk 0:00:05]}  Kxf2 {[%clk 0:00:15]} 52. Rxh4 {[%clk 0:00:05]}  Kxg2 {[%clk 0:00:15]} 53. a4 {[%clk 0:00:05]}  Kf3 {[%clk 0:00:13]} 54. a5 {[%clk 0:00:05]}  Ke3 {[%clk 0:00:13]} 55. Ra4 {[%clk 0:00:04]}  Ra6 {[%clk 0:00:13]} 56. Kb3 {[%clk 0:00:04]}  e5 {[%clk 0:00:13]} 57. Kb4 {[%clk 0:00:05]}  Kd3 {[%clk 0:00:13]} 58. c4 {[%clk 0:00:04]}  e4 {[%clk 0:00:13]} 59. Kb5 {[%clk 0:00:04]}  Ra8 {[%clk 0:00:13]} 60. Ra3+ {[%clk 0:00:04]}  Kd4 {[%clk 0:00:13]} 61. a6 {[%clk 0:00:04]}  Rb8+ {[%clk 0:00:12]} 62. Kc6 {[%clk 0:00:04]}  Kxc4 {[%clk 0:00:12]} 63. Kc7 {[%clk 0:00:04]}  Rh8 {[%clk 0:00:10]} 64. a7 {[%clk 0:00:04]}  Kd4 {[%clk 0:00:10]} 65. Ra4+ {[%clk 0:00:05]}  Kd3 {[%clk 0:00:10]} 66. Ra3+ {[%clk 0:00:04]}  Kd2 {[%clk 0:00:10]} 67. Ra2+ {[%clk 0:00:04]}  Kd3 {[%clk 0:00:10]} 68. a8=Q {[%clk 0:00:03]}  Rxa8 {[%clk 0:00:10]} 69. Rxa8 {[%clk 0:00:04]}  e3 {[%clk 0:00:10]} 70. Ra3+ {[%clk 0:00:04]}  Kd2 {[%clk 0:00:10]} 71. Ra2+ {[%clk 0:00:04]}  Kd3 {[%clk 0:00:10]} 72. Kd6 {[%clk 0:00:04]}  e2 {[%clk 0:00:10]} 73. Rxe2 {[%clk 0:00:04]}  Kxe2 {[%clk 0:00:10]} 1/2-1/2


[Site "https://www.chess.com"]

[Event "Early Titled Tuesday Blitz | February 8 2022"]
[White "Maltsevskaya, Aleksandra"]
[Black "Mirzanurov, Bulat"]
[WhiteFideId "24174041"]
[BlackFideId "4184521"]
[WhiteElo "2283"]
[BlackElo "2116"]
[Result "0-1"]
[Round "05"]
[TimeControl "180+1"]
[Date "2022.02.08"]
[WhiteClock "0:00:04"]
[BlackClock "0:00:08"]

1. d4 {[%clk 0:03:00]}  d5 {[%clk 0:02:58]} 2. Nf3 {[%clk 0:03:01]}  Nf6 {[%clk 0:02:55]} 3. c4 {[%clk 0:03:02]}  dxc4 {[%clk 0:02:54]} 4. e3 {[%clk 0:03:01]}  e6 {[%clk 0:02:54]} 5. Bxc4 {[%clk 0:03:02]}  a6 {[%clk 0:02:55]} 6. a3 {[%clk 0:03:02]}  c5 {[%clk 0:02:55]} 7. O-O {[%clk 0:03:02]}  b5 {[%clk 0:02:53]} 8. Ba2 {[%clk 0:03:01]}  Bb7 {[%clk 0:02:51]} 9. Nc3 {[%clk 0:02:57]}  Nbd7 {[%clk 0:02:45]} 10. Qe2 {[%clk 0:02:57]}  Be7 {[%clk 0:02:43]} 11. Rd1 {[%clk 0:02:53]}  Qc7 {[%clk 0:02:40]} 12. d5 {[%clk 0:02:50]}  exd5 {[%clk 0:02:33]} 13. e4 {[%clk 0:02:46]}  dxe4 {[%clk 0:02:15]} 14. Ng5 {[%clk 0:02:46]}  O-O {[%clk 0:02:07]} 15. Ncxe4 {[%clk 0:02:32]}  h6 {[%clk 0:01:54]} 16. Nxf7 {[%clk 0:01:18]}  Rxf7 {[%clk 0:01:50]} 17. Bxf7+ {[%clk 0:01:07]}  Kxf7 {[%clk 0:01:46]} 18. Ng3 {[%clk 0:01:06]}  Re8 {[%clk 0:01:37]} 19. Be3 {[%clk 0:01:04]}  Kg8 {[%clk 0:01:29]} 20. Rac1 {[%clk 0:00:56]}  Qc6 {[%clk 0:01:21]} 21. f3 {[%clk 0:00:52]}  Bf8 {[%clk 0:01:17]} 22. Qd2 {[%clk 0:00:45]}  Ne5 {[%clk 0:01:10]} 23. Nf1 {[%clk 0:00:19]}  c4 {[%clk 0:00:50]} 24. Qf2 {[%clk 0:00:14]}  Qe6 {[%clk 0:00:32]} 25. Rb1 {[%clk 0:00:05]}  Qf5 {[%clk 0:00:26]} 26. b3 {[%clk 0:00:04]}  cxb3 {[%clk 0:00:18]} 27. Rxb3 {[%clk 0:00:04]}  Kh8 {[%clk 0:00:13]} 28. Rc3 {[%clk 0:00:04]}  Nc4 {[%clk 0:00:12]} 29. Bd4 {[%clk 0:00:04]}  Nd5 {[%clk 0:00:08]} 0-1


[Site "https://www.chess.com"]

[Event "Early Titled Tuesday Blitz | February 8 2022"]
[White "Martinez Alcantara, Jose Eduardo"]
[Black "FGHSMN"]
[WhiteFideId "3805662"]
[WhiteElo "2690"]
[BlackElo "2772"]
[Result "1-0"]
[Round "05"]
[TimeControl "180+1"]
[Date "2022.02.08"]
[WhiteClock "0:00:05"]
[BlackClock "0:00:02"]

1. e4 {[%clk 0:03:00]}  c5 {[%clk 0:02:59]} 2. Nf3 {[%clk 0:03:01]}  e6 {[%clk 0:02:59]} 3. c3 {[%clk 0:03:01]}  d5 {[%clk 0:02:51]} 4. exd5 {[%clk 0:03:02]}  Qxd5 {[%clk 0:02:51]} 5. d4 {[%clk 0:03:03]}  Nf6 {[%clk 0:02:50]} 6. Be3 {[%clk 0:03:02]}  Nc6 {[%clk 0:02:49]} 7. Na3 {[%clk 0:02:58]}  cxd4 {[%clk 0:02:47]} 8. Nb5 {[%clk 0:02:56]}  Qd8 {[%clk 0:02:45]} 9. Nbxd4 {[%clk 0:02:53]}  Nxd4 {[%clk 0:02:44]} 10. Bxd4 {[%clk 0:02:54]}  Be7 {[%clk 0:02:42]} 11. Bd3 {[%clk 0:02:54]}  O-O {[%clk 0:02:42]} 12. Qe2 {[%clk 0:02:54]}  Qa5 {[%clk 0:02:31]} 13. Ne5 {[%clk 0:02:46]}  Qc7 {[%clk 0:01:29]} 14. O-O {[%clk 0:02:24]}  Bc5 {[%clk 0:01:28]} 15. Bxc5 {[%clk 0:01:43]}  Qxc5 {[%clk 0:01:27]} 16. Rfe1 {[%clk 0:01:44]}  b6 {[%clk 0:01:23]} 17. Qf3 {[%clk 0:01:42]}  Rb8 {[%clk 0:01:13]} 18. Qh3 {[%clk 0:01:31]}  h6 {[%clk 0:01:07]} 19. Re3 {[%clk 0:01:21]}  Nd7 {[%clk 0:00:56]} 20. Ng4 {[%clk 0:01:08]}  Qg5 {[%clk 0:00:51]} 21. f4 {[%clk 0:00:46]}  Qxf4 {[%clk 0:00:36]} 22. Rf1 {[%clk 0:00:46]}  Qg5 {[%clk 0:00:34]} 23. Rg3 {[%clk 0:00:47]}  Kh8 {[%clk 0:00:32]} 24. Kh1 {[%clk 0:00:27]}  Qd2 {[%clk 0:00:28]} 25. Re3 {[%clk 0:00:21]}  Bb7 {[%clk 0:00:09]} 26. Kg1 {[%clk 0:00:13]}  f5 {[%clk 0:00:09]} 27. Nxh6 {[%clk 0:00:12]}  Qxg2+ {[%clk 0:00:09]} 28. Qxg2 {[%clk 0:00:13]}  Bxg2 {[%clk 0:00:10]} 29. Kxg2 {[%clk 0:00:11]}  gxh6 {[%clk 0:00:10]} 30. Rxe6 {[%clk 0:00:10]}  Nc5 {[%clk 0:00:11]} 31. Rxh6+ {[%clk 0:00:10]}  Kg7 {[%clk 0:00:12]} 32. Rh3 {[%clk 0:00:11]}  Rbd8 {[%clk 0:00:11]} 33. Rg3+ {[%clk 0:00:11]}  Kh6 {[%clk 0:00:09]} 34. Rxf5 {[%clk 0:00:05]}  Rxf5 {[%clk 0:00:07]} 35. Bxf5 {[%clk 0:00:06]}  Rd2+ {[%clk 0:00:07]} 36. Kh3 {[%clk 0:00:04]}  Rxb2 {[%clk 0:00:08]} 37. a3 {[%clk 0:00:03]}  Ra2 {[%clk 0:00:07]} 38. Rg2 {[%clk 0:00:02]}  Rxa3 {[%clk 0:00:07]} 39. Kh4 {[%clk 0:00:03]}  Ra4+ {[%clk 0:00:05]} 40. Kh3 {[%clk 0:00:04]}  Rc4 {[%clk 0:00:06]} 41. Rg6+ {[%clk 0:00:03]}  Kh5 {[%clk 0:00:05]} 42. Rg3 {[%clk 0:00:04]}  Kh6 {[%clk 0:00:05]} 43. Re3 {[%clk 0:00:03]}  a5 {[%clk 0:00:05]} 44. Bb1 {[%clk 0:00:03]}  Kg5 {[%clk 0:00:05]} 45. Kg3 {[%clk 0:00:03]}  Rg4+ {[%clk 0:00:04]} 46. Kf3 {[%clk 0:00:03]}  Rf4+ {[%clk 0:00:05]} 47. Kg3 {[%clk 0:00:04]}  Rg4+ {[%clk 0:00:05]} 48. Kf3 {[%clk 0:00:04]}  Rf4+ {[%clk 0:00:06]} 49. Kg2 {[%clk 0:00:05]}  Rg4+ {[%clk 0:00:06]} 50. Kf2 {[%clk 0:00:06]}  Rf4+ {[%clk 0:00:06]} 51. Ke2 {[%clk 0:00:06]}  a4 {[%clk 0:00:06]} 52. Rg3+ {[%clk 0:00:05]}  Kh4 {[%clk 0:00:06]} 53. Rg6 {[%clk 0:00:05]}  Kh3 {[%clk 0:00:06]} 54. Rxb6 {[%clk 0:00:05]}  Kxh2 {[%clk 0:00:05]} 55. Rb5 {[%clk 0:00:05]}  Nb3 {[%clk 0:00:05]} 56. Ke3 {[%clk 0:00:03]}  Rf1 {[%clk 0:00:04]} 57. Be4 {[%clk 0:00:04]}  Rc1 {[%clk 0:00:05]} 58. Kf2 {[%clk 0:00:03]}  Kh3 {[%clk 0:00:03]} 59. Bf3 {[%clk 0:00:04]}  Rc2+ {[%clk 0:00:04]} 60. Be2 {[%clk 0:00:04]}  Rxe2+ {[%clk 0:00:02]} 61. Kxe2 {[%clk 0:00:05]} 1-0


[Site "https://www.chess.com"]

[Event "Early Titled Tuesday Blitz | February 8 2022"]
[White "Martinovici, Ilia"]
[Black "Gupta, Abhijeet"]
[WhiteFideId "13907034"]
[BlackFideId "5010608"]
[WhiteElo "2303"]
[BlackElo "2549"]
[Result "0-1"]
[Round "05"]
[TimeControl "180+1"]
[Date "2022.02.08"]
[WhiteClock "0:00:05"]
[BlackClock "0:00:27"]

1. d4 {[%clk 0:03:00]}  d5 {[%clk 0:02:59]} 2. c4 {[%clk 0:03:00]}  Nc6 {[%clk 0:02:58]} 3. e3 {[%clk 0:02:56]}  e5 {[%clk 0:02:55]} 4. dxe5 {[%clk 0:02:55]}  d4 {[%clk 0:02:55]} 5. exd4 {[%clk 0:02:53]}  Qxd4 {[%clk 0:02:53]} 6. Qxd4 {[%clk 0:02:44]}  Nxd4 {[%clk 0:02:54]} 7. Bd3 {[%clk 0:02:44]}  Ne7 {[%clk 0:02:48]} 8. Ne2 {[%clk 0:02:27]}  Bf5 {[%clk 0:02:39]} 9. Nxd4 {[%clk 0:01:43]}  Bxd3 {[%clk 0:02:39]} 10. Nb5 {[%clk 0:01:19]}  O-O-O {[%clk 0:02:35]} 11. Nxa7+ {[%clk 0:01:19]}  Kb8 {[%clk 0:02:34]} 12. Nb5 {[%clk 0:01:18]}  Nc6 {[%clk 0:02:32]} 13. Bg5 {[%clk 0:01:01]}  f6 {[%clk 0:02:29]} 14. exf6 {[%clk 0:01:00]}  gxf6 {[%clk 0:02:30]} 15. Bxf6 {[%clk 0:00:59]}  Bb4+ {[%clk 0:02:30]} 16. N5c3 {[%clk 0:00:38]}  Rhe8+ {[%clk 0:02:28]} 17. Kd2 {[%clk 0:00:34]}  Rd6 {[%clk 0:01:54]} 18. a3 {[%clk 0:00:17]}  Re2+ {[%clk 0:01:43]} 19. Kc1 {[%clk 0:00:17]}  Rc2+ {[%clk 0:01:42]} 20. Kd1 {[%clk 0:00:17]}  Bxc3 {[%clk 0:01:13]} 21. Bxc3 {[%clk 0:00:18]}  Rxf2 {[%clk 0:01:08]} 22. Nd2 {[%clk 0:00:16]}  Rxg2 {[%clk 0:01:04]} 23. Re1 {[%clk 0:00:14]}  b6 {[%clk 0:01:03]} 24. Kc1 {[%clk 0:00:13]}  Rxh2 {[%clk 0:01:02]} 25. b4 {[%clk 0:00:11]}  Rg2 {[%clk 0:00:54]} 26. b5 {[%clk 0:00:08]}  Nd4 {[%clk 0:00:53]} 27. Bxd4 {[%clk 0:00:06]}  Rxd4 {[%clk 0:00:54]} 28. a4 {[%clk 0:00:06]}  Bxc4 {[%clk 0:00:52]} 29. Nf3 {[%clk 0:00:05]}  Rd3 {[%clk 0:00:48]} 30. Re8+ {[%clk 0:00:04]}  Kb7 {[%clk 0:00:47]} 31. Ne1 {[%clk 0:00:04]}  Rc3+ {[%clk 0:00:45]} 32. Kb1 {[%clk 0:00:05]}  Rd2 {[%clk 0:00:34]} 33. a5 {[%clk 0:00:05]}  Rd1+ {[%clk 0:00:34]} 34. Kb2 {[%clk 0:00:04]}  Rb3+ {[%clk 0:00:34]} 35. Kc2 {[%clk 0:00:04]}  Rxa1 {[%clk 0:00:34]} 36. a6+ {[%clk 0:00:05]}  Ka7 {[%clk 0:00:32]} 37. Rc8 {[%clk 0:00:05]}  Ra2+ {[%clk 0:00:29]} 38. Kc1 {[%clk 0:00:05]}  Bxb5 {[%clk 0:00:26]} 39. Rxc7+ {[%clk 0:00:05]}  Kxa6 {[%clk 0:00:27]} 0-1


[Site "https://www.chess.com"]

[Event "Early Titled Tuesday Blitz | February 8 2022"]
[White "Minina, Veronika"]
[Black "Pniaczek, Marek"]
[WhiteFideId "4174780"]
[BlackFideId "21800421"]
[WhiteElo "1850"]
[BlackElo "2138"]
[Result "1-0"]
[Round "05"]
[TimeControl "180+1"]
[Date "2022.02.08"]
[WhiteClock "0:00:55"]
[BlackClock "0:00:33"]

1. Nf3 {[%clk 0:03:00]}  g6 {[%clk 0:02:54]} 2. g3 {[%clk 0:03:00]}  Bg7 {[%clk 0:02:55]} 3. Bg2 {[%clk 0:03:01]}  b6 {[%clk 0:02:55]} 4. O-O {[%clk 0:03:01]}  Bb7 {[%clk 0:02:56]} 5. c4 {[%clk 0:03:01]}  d6 {[%clk 0:02:56]} 6. Nc3 {[%clk 0:03:01]}  Nd7 {[%clk 0:02:57]} 7. b3 {[%clk 0:02:56]}  e6 {[%clk 0:02:57]} 8. Bb2 {[%clk 0:02:56]}  Ne7 {[%clk 0:02:58]} 9. Qc2 {[%clk 0:02:43]}  O-O {[%clk 0:02:58]} 10. Nb5 {[%clk 0:02:33]}  e5 {[%clk 0:02:54]} 11. Rad1 {[%clk 0:02:28]}  h6 {[%clk 0:02:51]} 12. Rfe1 {[%clk 0:02:23]}  f5 {[%clk 0:02:49]} 13. Nxe5 {[%clk 0:02:21]}  Bxg2 {[%clk 0:02:39]} 14. Nxd7 {[%clk 0:02:21]}  Qxd7 {[%clk 0:02:26]} 15. Kxg2 {[%clk 0:02:19]}  f4 {[%clk 0:02:26]} 16. Bxg7 {[%clk 0:02:17]}  Kxg7 {[%clk 0:02:26]} 17. Qc3+ {[%clk 0:02:15]}  Kh7 {[%clk 0:02:24]} 18. Nd4 {[%clk 0:02:13]}  c5 {[%clk 0:02:19]} 19. Nf3 {[%clk 0:02:11]}  Nf5 {[%clk 0:02:19]} 20. d4 {[%clk 0:02:05]}  fxg3 {[%clk 0:02:09]} 21. hxg3 {[%clk 0:02:04]}  cxd4 {[%clk 0:02:05]} 22. Nxd4 {[%clk 0:01:52]}  Qb7+ {[%clk 0:02:05]} 23. Nf3 {[%clk 0:01:50]}  Rae8 {[%clk 0:01:58]} 24. Qd3 {[%clk 0:01:39]}  Re4 {[%clk 0:01:44]} 25. Rh1 {[%clk 0:01:36]}  Qe7 {[%clk 0:01:28]} 26. Ng5+ {[%clk 0:01:28]}  Qxg5 {[%clk 0:01:27]} 27. Qxe4 {[%clk 0:01:29]}  Rf7 {[%clk 0:01:27]} 28. Rd5 {[%clk 0:01:26]}  Re7 {[%clk 0:01:25]} 29. Qd3 {[%clk 0:01:10]}  h5 {[%clk 0:01:08]} 30. e4 {[%clk 0:01:09]}  Qg4 {[%clk 0:00:36]} 31. exf5 {[%clk 0:01:03]}  Re2 {[%clk 0:00:36]} 32. fxg6+ {[%clk 0:01:03]}  Kg8 {[%clk 0:00:33]} 33. Rdxh5 {[%clk 0:00:55]} 1-0


[Site "https://www.chess.com"]

[Event "Early Titled Tuesday Blitz | February 8 2022"]
[White "Molina, Roberto Junio Brito"]
[Black "Aradhya, Garg"]
[WhiteFideId "2109450"]
[BlackFideId "25006746"]
[WhiteElo "2402"]
[BlackElo "2169"]
[Result "0-1"]
[Round "05"]
[TimeControl "180+1"]
[Date "2022.02.08"]
[WhiteClock "0:00:41"]
[BlackClock "0:00:29"]

1. d4 {[%clk 0:03:00]}  d5 {[%clk 0:02:59]} 2. e3 {[%clk 0:03:00]}  Nf6 {[%clk 0:02:59]} 3. Nf3 {[%clk 0:03:01]}  c5 {[%clk 0:02:54]} 4. c3 {[%clk 0:03:01]}  Nc6 {[%clk 0:02:48]} 5. Nbd2 {[%clk 0:03:00]}  e6 {[%clk 0:02:41]} 6. Bd3 {[%clk 0:02:59]}  Be7 {[%clk 0:02:41]} 7. O-O {[%clk 0:02:58]}  O-O {[%clk 0:02:41]} 8. dxc5 {[%clk 0:02:58]}  a5 {[%clk 0:02:40]} 9. e4 {[%clk 0:02:53]}  Bxc5 {[%clk 0:02:39]} 10. Qe2 {[%clk 0:02:49]}  Bb6 {[%clk 0:02:23]} 11. a4 {[%clk 0:02:22]}  h6 {[%clk 0:02:08]} 12. h3 {[%clk 0:02:08]}  Nh5 {[%clk 0:02:04]} 13. Nb3 {[%clk 0:02:07]}  Ng3 {[%clk 0:02:04]} 14. Qe1 {[%clk 0:02:06]}  Nxf1 {[%clk 0:01:37]} 15. Kxf1 {[%clk 0:02:03]}  Qc7 {[%clk 0:01:33]} 16. e5 {[%clk 0:01:57]}  f6 {[%clk 0:01:30]} 17. Bf4 {[%clk 0:01:49]}  fxe5 {[%clk 0:01:29]} 18. Bg3 {[%clk 0:01:48]}  Qf7 {[%clk 0:01:14]} 19. Bxe5 {[%clk 0:01:34]}  Nxe5 {[%clk 0:01:14]} 20. Qxe5 {[%clk 0:01:35]}  Bc7 {[%clk 0:01:10]} 21. Qe2 {[%clk 0:01:33]}  e5 {[%clk 0:01:10]} 22. Ng1 {[%clk 0:01:17]}  Bb6 {[%clk 0:01:02]} 23. f3 {[%clk 0:01:12]}  e4 {[%clk 0:01:02]} 24. Bb5 {[%clk 0:01:07]}  exf3 {[%clk 0:00:55]} 25. Nxf3 {[%clk 0:01:03]}  Bxh3 {[%clk 0:00:54]} 26. Nd2 {[%clk 0:01:03]}  Bg4 {[%clk 0:00:36]} 27. Re1 {[%clk 0:01:00]}  Qh5 {[%clk 0:00:35]} 28. Qe5 {[%clk 0:00:40]}  Qh1+ {[%clk 0:00:33]} 29. Ke2 {[%clk 0:00:41]}  Qxg2+ {[%clk 0:00:33]} 30. Kd3 {[%clk 0:00:41]}  Bf5+ {[%clk 0:00:29]} 0-1


[Site "https://www.chess.com"]